[Event "Late-Titled-Tuesday-Blitz-December-26-2023"]
[Site "Chess.com"]
[Date "2023.12.26"]
[Round "8"]
[White "Mikhail_Golubev"]
[Black "elchacal664"]
[Result "1-0"]
[WhiteElo "2630"]
[BlackElo "2327"]
[TimeControl "180+1"]
[EndTime "15:25:43 PST"]
[Termination "Mikhail_Golubev won by resignation"]

1. e4 {[%clk 0:03:00.9]} 1... c5 {[%clk 0:02:47.8]} 2. Nf3 {[%clk 0:03:00.1]}
2... d6 {[%clk 0:02:46.6]} 3. d4 {[%clk 0:02:59.6]} 3... cxd4 {[%clk 0:02:47.5]}
4. Nxd4 {[%clk 0:02:59.9]} 4... Nf6 {[%clk 0:02:48.2]} 5. Nc3 {[%clk 0:03:00]}
5... g6 {[%clk 0:02:48.9]} 6. Be3 {[%clk 0:02:58.5]} 6... a6 {[%clk 0:02:49.1]}
7. f3 {[%clk 0:02:56.6]} 7... h5 {[%clk 0:02:48.9]} 8. Qd2 {[%clk 0:02:53.4]}
8... b5 {[%clk 0:02:48.8]} 9. a4 {[%clk 0:02:45.2]} 9... b4 {[%clk 0:02:48.4]}
10. Nd5 {[%clk 0:02:45.3]} 10... Nxd5 {[%clk 0:02:48.2]} 11. exd5 {[%clk
0:02:44.8]} 11... a5 {[%clk 0:02:43.2]} 12. Bb5+ {[%clk 0:02:33.5]} 12... Bd7
{[%clk 0:02:42.4]} 13. Nc6 {[%clk 0:02:09.8]} 13... Qc7 {[%clk 0:02:41.3]} 14.
Bd4 {[%clk 0:01:49.6]} 14... Rg8 {[%clk 0:01:56.3]} 15. Nxb8 {[%clk 0:01:45.6]}
15... Rxb8 {[%clk 0:01:54.6]} 16. Bxd7+ {[%clk 0:01:36.9]} 16... Qxd7 {[%clk
0:01:55.5]} 17. O-O {[%clk 0:01:36.7]} 17... e5 {[%clk 0:01:42.2]} 18. dxe6
{[%clk 0:01:31.1]} 18... fxe6 {[%clk 0:01:42.7]} 19. Rfe1 {[%clk 0:01:26.8]}
19... Be7 {[%clk 0:01:34.3]} 20. c4 {[%clk 0:01:17.2]} 20... e5 {[%clk
0:01:32.2]} 21. Bf2 {[%clk 0:01:14.1]} 21... Qe6 {[%clk 0:01:26.9]} 22. b3
{[%clk 0:01:13]} 22... g5 {[%clk 0:01:25.7]} 23. Rad1 {[%clk 0:01:04]} 23... Qf5
{[%clk 0:01:15.7]} 24. c5 {[%clk 0:00:52]} 24... dxc5 {[%clk 0:01:12.7]} 25. Qd5
{[%clk 0:00:36.3]} 25... Kf8 {[%clk 0:01:12.2]} 26. Bxc5 {[%clk 0:00:30.5]}
26... Rg7 {[%clk 0:01:06.4]} 27. Rxe5 {[%clk 0:00:27]} 1-0

[Event "Late-Titled-Tuesday-Blitz-December-26-2023"]
[Site "Chess.com"]
[Date "2023.12.26"]
[Round "8"]
[White "BeardedNM"]
[Black "GAusal"]
[Result "1-0"]
[WhiteElo "2180"]
[BlackElo "2282"]
[TimeControl "180+1"]
[EndTime "15:25:44 PST"]
[Termination "BeardedNM won by checkmate"]

1. e4 {[%clk 0:02:56.4]} 1... c5 {[%clk 0:02:48.3]} 2. Nf3 {[%clk 0:02:56.1]}
2... e6 {[%clk 0:02:48.3]} 3. d4 {[%clk 0:02:56]} 3... cxd4 {[%clk 0:02:48.1]}
4. Nxd4 {[%clk 0:02:56.5]} 4... a6 {[%clk 0:02:48.5]} 5. Bd3 {[%clk 0:02:56.2]}
5... Nc6 {[%clk 0:02:48.6]} 6. Nxc6 {[%clk 0:02:53.9]} 6... bxc6 {[%clk
0:02:48.7]} 7. c4 {[%clk 0:02:50.8]} 7... d6 {[%clk 0:02:43.6]} 8. Nc3 {[%clk
0:02:50.1]} 8... Nf6 {[%clk 0:02:43.2]} 9. O-O {[%clk 0:02:50.2]} 9... Qc7
{[%clk 0:02:43.1]} 10. b3 {[%clk 0:02:41.9]} 10... Be7 {[%clk 0:02:41.7]} 11.
Bb2 {[%clk 0:02:42.1]} 11... a5 {[%clk 0:02:40.9]} 12. Qe2 {[%clk 0:02:41.8]}
12... O-O {[%clk 0:02:39.6]} 13. f4 {[%clk 0:02:39.7]} 13... c5 {[%clk
0:02:37.8]} 14. e5 {[%clk 0:02:35.5]} 14... Ne8 {[%clk 0:02:35.3]} 15. Qe4
{[%clk 0:02:30.8]} 15... g6 {[%clk 0:02:26.8]} 16. Qxa8 {[%clk 0:02:30.3]} 16...
Bb7 {[%clk 0:02:26]} 17. Qa7 {[%clk 0:02:09.9]} 17... dxe5 {[%clk 0:02:23.8]}
18. fxe5 {[%clk 0:01:55.6]} 18... Bg5 {[%clk 0:02:16]} 19. Be4 {[%clk
0:01:43.1]} 19... Be3+ {[%clk 0:02:08.2]} 20. Kh1 {[%clk 0:01:42.3]} 20... Nd6
{[%clk 0:01:58.8]} 21. exd6 {[%clk 0:01:27.9]} 21... Qxd6 {[%clk 0:01:58.8]} 22.
Qxb7 {[%clk 0:01:22.9]} 22... Qd2 {[%clk 0:01:58.2]} 23. Na4 {[%clk 0:01:10.9]}
23... h5 {[%clk 0:01:44.3]} 24. Rad1 {[%clk 0:01:07.7]} 24... Qe2 {[%clk
0:01:31.3]} 25. Bxg6 {[%clk 0:00:41.7]} 25... Qg4 {[%clk 0:01:22.2]} 26. Bxf7+
{[%clk 0:00:28.7]} 26... Rxf7 {[%clk 0:00:59.4]} 27. Qxf7# {[%clk 0:00:27.4]}
1-0

[Event "Late-Titled-Tuesday-Blitz-December-26-2023"]
[Site "Chess.com"]
[Date "2023.12.26"]
[Round "8"]
[White "lolo9292"]
[Black "powermove"]
[Result "0-1"]
[WhiteElo "2190"]
[BlackElo "2026"]
[TimeControl "180+1"]
[EndTime "15:26:01 PST"]
[Termination "powermove won by checkmate"]

1. e4 {[%clk 0:02:59.2]} 1... e5 {[%clk 0:02:59.3]} 2. Nc3 {[%clk 0:02:58]} 2...
Nf6 {[%clk 0:02:57.6]} 3. f4 {[%clk 0:02:56.1]} 3... d5 {[%clk 0:02:56.7]} 4.
fxe5 {[%clk 0:02:56.3]} 4... Nxe4 {[%clk 0:02:55.8]} 5. Nf3 {[%clk 0:02:57.2]}
5... Be7 {[%clk 0:02:50.6]} 6. Qe2 {[%clk 0:02:54.3]} 6... Nxc3 {[%clk
0:02:49.8]} 7. dxc3 {[%clk 0:02:55.2]} 7... c6 {[%clk 0:02:41.7]} 8. Bf4 {[%clk
0:02:43.6]} 8... Bf5 {[%clk 0:02:38.7]} 9. O-O-O {[%clk 0:02:42.3]} 9... Qa5
{[%clk 0:02:37.4]} 10. Kb1 {[%clk 0:02:41.4]} 10... O-O {[%clk 0:02:28.7]} 11.
h4 {[%clk 0:02:37.5]} 11... Nd7 {[%clk 0:02:24.5]} 12. Ng5 {[%clk 0:02:34.7]}
12... Qa4 {[%clk 0:02:19]} 13. Rd4 {[%clk 0:02:30.7]} 13... Qa5 {[%clk
0:02:06.6]} 14. g4 {[%clk 0:02:30.5]} 14... Bxg5 {[%clk 0:01:54.7]} 15. hxg5
{[%clk 0:02:29.9]} 15... Bg6 {[%clk 0:01:54.4]} 16. Qh2 {[%clk 0:02:29.2]} 16...
Nc5 {[%clk 0:01:48.5]} 17. Ka1 {[%clk 0:02:04.1]} 17... Ne4 {[%clk 0:01:44]} 18.
Bd3 {[%clk 0:02:02.1]} 18... Nxc3 {[%clk 0:01:21.4]} 19. bxc3 {[%clk 0:01:57.2]}
19... Qxc3+ {[%clk 0:01:20.2]} 20. Kb1 {[%clk 0:01:57.9]} 20... Qxd4 {[%clk
0:01:17.7]} 21. Bxg6 {[%clk 0:01:58.3]} 21... fxg6 {[%clk 0:01:17.2]} 22. e6
{[%clk 0:01:56.2]} 22... Rxf4 {[%clk 0:00:52.8]} 23. Qxh7+ {[%clk 0:01:54.7]}
23... Kf8 {[%clk 0:00:53]} 24. Qh8+ {[%clk 0:01:54.8]} 24... Ke7 {[%clk
0:00:52.9]} 25. Qxa8 {[%clk 0:01:53.7]} 25... Qb4+ {[%clk 0:00:52.1]} 26. Ka1
{[%clk 0:01:52.6]} 26... Qc3+ {[%clk 0:00:51.3]} 27. Kb1 {[%clk 0:01:52.3]}
27... Rb4+ {[%clk 0:00:44.1]} 28. Kc1 {[%clk 0:01:52.7]} 28... Qa1+ {[%clk
0:00:44.2]} 29. Kd2 {[%clk 0:01:52.7]} 29... Qxh1 {[%clk 0:00:42.3]} 30. Qc8
{[%clk 0:01:51.8]} 30... Rd4+ {[%clk 0:00:23.1]} 31. Kc3 {[%clk 0:01:51]} 31...
Rc4+ {[%clk 0:00:19.1]} 32. Kb2 {[%clk 0:01:50.9]} 32... Kd6 {[%clk 0:00:16.5]}
33. Qd7+ {[%clk 0:01:46.6]} 33... Kc5 {[%clk 0:00:16]} 34. Qe7+ {[%clk
0:01:45.9]} 34... Kb6 {[%clk 0:00:15]} 35. Qd8+ {[%clk 0:01:46]} 35... Ka6
{[%clk 0:00:15]} 36. e7 {[%clk 0:01:46.2]} 36... Qg2 {[%clk 0:00:12.5]} 37. e8=Q
{[%clk 0:01:33.2]} 37... Qxc2+ {[%clk 0:00:11.9]} 38. Ka3 {[%clk 0:01:33]} 38...
Ra4# {[%clk 0:00:11.7]} 0-1

[Event "Late-Titled-Tuesday-Blitz-December-26-2023"]
[Site "Chess.com"]
[Date "2023.12.26"]
[Round "8"]
[White "kasparicy"]
[Black "mightysmasher"]
[Result "1-0"]
[WhiteElo "2491"]
[BlackElo "2567"]
[TimeControl "180+1"]
[EndTime "15:26:07 PST"]
[Termination "kasparicy won by checkmate"]

1. e4 {[%clk 0:03:00.9]} 1... e6 {[%clk 0:02:56.6]} 2. d4 {[%clk 0:02:57.2]}
2... d5 {[%clk 0:02:56.8]} 3. Nd2 {[%clk 0:02:57.7]} 3... dxe4 {[%clk
0:02:56.8]} 4. Nxe4 {[%clk 0:02:58.6]} 4... Nd7 {[%clk 0:02:57.5]} 5. Nf3 {[%clk
0:02:58.3]} 5... Ngf6 {[%clk 0:02:58]} 6. Nxf6+ {[%clk 0:02:58.4]} 6... Nxf6
{[%clk 0:02:58.9]} 7. Bd3 {[%clk 0:02:58.8]} 7... c5 {[%clk 0:02:59.5]} 8. Qe2
{[%clk 0:02:58.5]} 8... cxd4 {[%clk 0:02:58.5]} 9. Bg5 {[%clk 0:02:58.9]} 9...
Bd7 {[%clk 0:02:57.5]} 10. O-O-O {[%clk 0:02:58.8]} 10... Qc7 {[%clk 0:02:57.6]}
11. Kb1 {[%clk 0:02:58]} 11... O-O-O {[%clk 0:02:56.5]} 12. Nxd4 {[%clk
0:02:57.5]} 12... h6 {[%clk 0:02:50.2]} 13. Bh4 {[%clk 0:02:45.8]} 13... Qb6
{[%clk 0:02:37.2]} 14. Bb5 {[%clk 0:02:35.6]} 14... Bc5 {[%clk 0:02:25.5]} 15.
Bxd7+ {[%clk 0:02:30.8]} 15... Rxd7 {[%clk 0:02:24.5]} 16. Nb3 {[%clk
0:02:30.9]} 16... Bd6 {[%clk 0:01:57.7]} 17. c4 {[%clk 0:02:18.5]} 17... Rhd8
{[%clk 0:01:44.5]} 18. c5 {[%clk 0:01:59]} 18... Bxc5 {[%clk 0:01:40.8]} 19. Rc1
{[%clk 0:01:59]} 19... Rc7 {[%clk 0:01:34.8]} 20. Bxf6 {[%clk 0:01:52.8]} 20...
gxf6 {[%clk 0:01:32.8]} 21. Nxc5 {[%clk 0:01:52.9]} 21... Kb8 {[%clk 0:01:12.5]}
22. Nb3 {[%clk 0:01:51.1]} 22... Rcd7 {[%clk 0:01:11.6]} 23. Rc2 {[%clk
0:01:51.2]} 23... a6 {[%clk 0:01:10.4]} 24. Rhc1 {[%clk 0:01:51.6]} 24... Rd5
{[%clk 0:01:04]} 25. Qe3 {[%clk 0:01:50.7]} 25... Qxe3 {[%clk 0:01:01.1]} 26.
fxe3 {[%clk 0:01:51.6]} 26... R8d7 {[%clk 0:01:00.1]} 27. Nc5 {[%clk 0:01:35.3]}
27... Re7 {[%clk 0:00:58.3]} 28. Na4 {[%clk 0:01:30.2]} 28... Re5 {[%clk
0:00:50.5]} 29. Nb6 {[%clk 0:01:21.4]} 29... Rxe3 {[%clk 0:00:40.6]} 30. a4
{[%clk 0:01:21.8]} 30... Re5 {[%clk 0:00:34.3]} 31. b4 {[%clk 0:01:20.1]} 31...
a5 {[%clk 0:00:17.6]} 32. Rc8+ {[%clk 0:01:11.1]} 32... Ka7 {[%clk 0:00:17.4]}
33. Nc4 {[%clk 0:01:11.7]} 33... Re4 {[%clk 0:00:16]} 34. bxa5 {[%clk
0:01:10.7]} 34... Ka6 {[%clk 0:00:13]} 35. Ra8# {[%clk 0:01:09.4]} 1-0

[Event "Late-Titled-Tuesday-Blitz-December-26-2023"]
[Site "Chess.com"]
[Date "2023.12.26"]
[Round "8"]
[White "DishonorOnYourCow"]
[Black "RebecaJimnz"]
[Result "1-0"]
[WhiteElo "2561"]
[BlackElo "2287"]
[TimeControl "180+1"]
[EndTime "15:26:23 PST"]
[Termination "DishonorOnYourCow won by checkmate"]

1. d4 {[%clk 0:03:00.9]} 1... d5 {[%clk 0:02:59.5]} 2. c4 {[%clk 0:03:01]} 2...
c6 {[%clk 0:02:59.9]} 3. Nf3 {[%clk 0:03:00.4]} 3... Nf6 {[%clk 0:03:00.4]} 4.
e3 {[%clk 0:03:01]} 4... e6 {[%clk 0:03:01.1]} 5. Bd3 {[%clk 0:02:59.8]} 5...
dxc4 {[%clk 0:02:58.3]} 6. Bxc4 {[%clk 0:02:59.9]} 6... b5 {[%clk 0:02:58.9]} 7.
Bd3 {[%clk 0:03:00.3]} 7... Nbd7 {[%clk 0:02:58.9]} 8. e4 {[%clk 0:02:59]} 8...
a6 {[%clk 0:02:57]} 9. O-O {[%clk 0:02:59.2]} 9... Be7 {[%clk 0:02:55.1]} 10.
Nc3 {[%clk 0:02:58.7]} 10... c5 {[%clk 0:02:51.1]} 11. e5 {[%clk 0:02:57.1]}
11... Nd5 {[%clk 0:02:43.8]} 12. Nxd5 {[%clk 0:02:56.6]} 12... exd5 {[%clk
0:02:44.7]} 13. Qe2 {[%clk 0:02:50.4]} 13... c4 {[%clk 0:02:07.2]} 14. Bc2
{[%clk 0:02:49.5]} 14... Qb6 {[%clk 0:02:04.6]} 15. Bg5 {[%clk 0:02:43.9]} 15...
Qd8 {[%clk 0:01:37.1]} 16. e6 {[%clk 0:02:22.2]} 16... fxe6 {[%clk 0:01:11.4]}
17. Qxe6 {[%clk 0:02:20.4]} 17... Nf6 {[%clk 0:01:12]} 18. Qe2 {[%clk
0:02:07.8]} 18... O-O {[%clk 0:01:12.1]} 19. Ne5 {[%clk 0:02:05.7]} 19... Bd6
{[%clk 0:00:50.3]} 20. Rae1 {[%clk 0:01:55.3]} 20... Qc7 {[%clk 0:00:47.8]} 21.
h3 {[%clk 0:01:39.4]} 21... Bd7 {[%clk 0:00:23.2]} 22. Bxf6 {[%clk 0:01:21.7]}
22... Rxf6 {[%clk 0:00:22.8]} 23. Qh5 {[%clk 0:01:21.4]} 23... g6 {[%clk
0:00:18.5]} 24. Bxg6 {[%clk 0:01:14.7]} 24... hxg6 {[%clk 0:00:16.4]} 25. Nxg6
{[%clk 0:01:15.6]} 25... Kg7 {[%clk 0:00:13.9]} 26. Ne7 {[%clk 0:01:03.9]} 26...
Rh8 {[%clk 0:00:09.4]} 27. Qg5+ {[%clk 0:01:03.9]} 27... Kf7 {[%clk 0:00:08]}
28. Nxd5 {[%clk 0:00:54.3]} 28... Bh2+ {[%clk 0:00:07.8]} 29. Kh1 {[%clk
0:00:54]} 29... Qc6 {[%clk 0:00:06.4]} 30. Re7+ {[%clk 0:00:52]} 30... Kf8
{[%clk 0:00:03.9]} 31. Qg7# {[%clk 0:00:51.8]} 1-0

[Event "Late-Titled-Tuesday-Blitz-December-26-2023"]
[Site "Chess.com"]
[Date "2023.12.26"]
[Round "8"]
[White "nassimzrikem"]
[Black "Cambek64"]
[Result "1-0"]
[WhiteElo "2265"]
[BlackElo "2413"]
[TimeControl "180+1"]
[EndTime "15:26:24 PST"]
[Termination "nassimzrikem won by resignation"]

1. d4 {[%clk 0:03:00]} 1... b5 {[%clk 0:02:57.1]} 2. e4 {[%clk 0:02:49.8]} 2...
Bb7 {[%clk 0:02:57.1]} 3. Bxb5 {[%clk 0:02:50.2]} 3... Bxe4 {[%clk 0:02:57.3]}
4. Nf3 {[%clk 0:02:50.8]} 4... c6 {[%clk 0:02:57.5]} 5. Bc4 {[%clk 0:02:49.6]}
5... d5 {[%clk 0:02:53.7]} 6. Bd3 {[%clk 0:02:46]} 6... Bxd3 {[%clk 0:02:48.4]}
7. Qxd3 {[%clk 0:02:46.9]} 7... e6 {[%clk 0:02:48.2]} 8. O-O {[%clk 0:02:46.1]}
8... Nf6 {[%clk 0:02:48.7]} 9. c3 {[%clk 0:02:40.4]} 9... c5 {[%clk 0:02:44.8]}
10. Bg5 {[%clk 0:02:37.5]} 10... Nbd7 {[%clk 0:02:43.1]} 11. Ne5 {[%clk
0:02:33.7]} 11... Qc7 {[%clk 0:02:36.7]} 12. f4 {[%clk 0:02:17.8]} 12... Ne4
{[%clk 0:02:27.8]} 13. Bh4 {[%clk 0:02:13.1]} 13... cxd4 {[%clk 0:02:15.2]} 14.
cxd4 {[%clk 0:02:12.4]} 14... Nxe5 {[%clk 0:02:15.5]} 15. fxe5 {[%clk
0:02:11.1]} 15... Be7 {[%clk 0:02:15.4]} 16. Bxe7 {[%clk 0:02:09.3]} 16... Qxe7
{[%clk 0:02:12.9]} 17. Qb5+ {[%clk 0:02:03.8]} 17... Kf8 {[%clk 0:02:12.2]} 18.
Nc3 {[%clk 0:02:01.6]} 18... Nxc3 {[%clk 0:02:09.7]} 19. bxc3 {[%clk 0:02:02.5]}
19... g6 {[%clk 0:02:01]} 20. Rf6 {[%clk 0:01:14.4]} 20... Kg7 {[%clk
0:02:01.3]} 21. Raf1 {[%clk 0:01:15]} 21... Rhf8 {[%clk 0:02:00.7]} 22. h4
{[%clk 0:01:12.5]} 22... Rac8 {[%clk 0:01:47.9]} 23. Qd3 {[%clk 0:00:58.8]}
23... Rc4 {[%clk 0:01:45.5]} 24. h5 {[%clk 0:00:58]} 24... Qc7 {[%clk
0:01:42.2]} 25. R1f3 {[%clk 0:00:48.9]} 25... Ra4 {[%clk 0:01:23.5]} 26. Qe3
{[%clk 0:00:37.8]} 26... Rxa2 {[%clk 0:01:12.5]} 27. Rh3 {[%clk 0:00:37.3]}
27... Rh8 {[%clk 0:01:10.4]} 28. h6+ {[%clk 0:00:37]} 28... Kf8 {[%clk
0:01:00.6]} 29. Rhf3 {[%clk 0:00:36.8]} 29... Ke8 {[%clk 0:01:00.5]} 30. Rxf7
{[%clk 0:00:35.9]} 30... Ra1+ {[%clk 0:00:55.4]} 31. Kh2 {[%clk 0:00:35.8]}
31... Qxf7 {[%clk 0:00:52.7]} 32. Rxf7 {[%clk 0:00:35.9]} 32... Kxf7 {[%clk
0:00:52.7]} 33. Qf4+ {[%clk 0:00:36.4]} 33... Ke8 {[%clk 0:00:52.2]} 34. Qf6
{[%clk 0:00:36.8]} 34... Rf8 {[%clk 0:00:51.7]} 35. Qxe6+ {[%clk 0:00:37]} 35...
Kd8 {[%clk 0:00:50.8]} 36. Qd6+ {[%clk 0:00:35.9]} 36... Kc8 {[%clk 0:00:50.1]}
37. Qxf8+ {[%clk 0:00:35.7]} 1-0

[Event "Late-Titled-Tuesday-Blitz-December-26-2023"]
[Site "Chess.com"]
[Date "2023.12.26"]
[Round "8"]
[White "Shankland"]
[Black "Szparu"]
[Result "1/2-1/2"]
[WhiteElo "2954"]
[BlackElo "2907"]
[TimeControl "180+1"]
[EndTime "15:26:27 PST"]
[Termination "Game drawn by agreement"]

1. d4 {[%clk 0:03:00.9]} 1... d5 {[%clk 0:03:00.2]} 2. c4 {[%clk 0:03:01]} 2...
e6 {[%clk 0:02:56.8]} 3. Nf3 {[%clk 0:03:01.2]} 3... Nf6 {[%clk 0:02:57.2]} 4.
Nc3 {[%clk 0:03:01.6]} 4... Nbd7 {[%clk 0:02:51.2]} 5. Bf4 {[%clk 0:02:57]} 5...
Bb4 {[%clk 0:02:49.7]} 6. Qa4 {[%clk 0:02:52.9]} 6... c5 {[%clk 0:02:40.5]} 7.
e3 {[%clk 0:02:49.5]} 7... O-O {[%clk 0:02:36.7]} 8. dxc5 {[%clk 0:02:45.9]}
8... Bxc3+ {[%clk 0:02:26.7]} 9. bxc3 {[%clk 0:02:46.3]} 9... Nxc5 {[%clk
0:02:24.9]} 10. Qa3 {[%clk 0:02:46.4]} 10... b6 {[%clk 0:02:23.4]} 11. Be2
{[%clk 0:02:43.1]} 11... Bb7 {[%clk 0:02:19.4]} 12. O-O {[%clk 0:02:42.4]} 12...
Qe7 {[%clk 0:02:06.5]} 13. Rfd1 {[%clk 0:02:38.9]} 13... h6 {[%clk 0:01:59.6]}
14. Be5 {[%clk 0:02:33.2]} 14... Rfd8 {[%clk 0:01:42.2]} 15. cxd5 {[%clk
0:02:30.1]} 15... Nxd5 {[%clk 0:01:35.8]} 16. c4 {[%clk 0:02:30.2]} 16... Nf6
{[%clk 0:01:34]} 17. Nd4 {[%clk 0:02:25.8]} 17... Nfe4 {[%clk 0:01:16]} 18. f3
{[%clk 0:02:22.5]} 18... f6 {[%clk 0:01:05]} 19. Bg3 {[%clk 0:02:10.7]} 19...
Nxg3 {[%clk 0:01:04.5]} 20. hxg3 {[%clk 0:02:11.6]} 20... Qc7 {[%clk 0:01:01.3]}
21. Kf2 {[%clk 0:02:10.4]} 21... Qe7 {[%clk 0:00:44.3]} 22. Qb2 {[%clk
0:01:55.4]} 22... Rd7 {[%clk 0:00:40.9]} 23. Nb5 {[%clk 0:01:52.9]} 23... Bc6
{[%clk 0:00:39.5]} 24. Rxd7 {[%clk 0:01:50.8]} 24... Bxd7 {[%clk 0:00:37.9]} 25.
Rd1 {[%clk 0:01:50.7]} 25... Bxb5 {[%clk 0:00:38]} 26. cxb5 {[%clk 0:01:48.9]}
26... Rd8 {[%clk 0:00:38.1]} 27. Qc2 {[%clk 0:01:48.4]} 27... Rd7 {[%clk
0:00:35.9]} 28. Bc4 {[%clk 0:01:47.2]} 28... Qd8 {[%clk 0:00:35.5]} 29. Ke2
{[%clk 0:01:44]} 29... Rxd1 {[%clk 0:00:33.5]} 30. Qxd1 {[%clk 0:01:44.9]} 30...
Qe7 {[%clk 0:00:25.8]} 31. Qd4 {[%clk 0:01:43]} 31... g5 {[%clk 0:00:24.6]} 32.
g4 {[%clk 0:01:41.8]} 32... Kg7 {[%clk 0:00:24.3]} 33. g3 {[%clk 0:01:39.9]}
33... Qc7 {[%clk 0:00:23.6]} 34. f4 {[%clk 0:01:39.2]} 34... Qe7 {[%clk
0:00:19]} 35. Kf2 {[%clk 0:01:36.8]} 35... Qc7 {[%clk 0:00:10.3]} 36. Be2 {[%clk
0:01:35]} 36... Qd7 {[%clk 0:00:08.4]} 37. Qxd7+ {[%clk 0:01:19.9]} 37... Nxd7
{[%clk 0:00:09.3]} 38. e4 {[%clk 0:01:20.4]} 38... Nc5 {[%clk 0:00:10.1]} 39.
Ke3 {[%clk 0:01:20.3]} 39... Kf7 {[%clk 0:00:10.4]} 40. Kd4 {[%clk 0:01:19.2]}
40... Ke7 {[%clk 0:00:10.8]} 41. Bc4 {[%clk 0:01:18.8]} 41... Kd6 {[%clk
0:00:08.1]} 42. e5+ {[%clk 0:01:18.3]} 42... fxe5+ {[%clk 0:00:09]} 43. fxe5+
{[%clk 0:01:18.9]} 43... Ke7 {[%clk 0:00:09.5]} 44. Be2 {[%clk 0:01:17.5]} 44...
Nd7 {[%clk 0:00:09.4]} 45. Bd3 {[%clk 0:01:16.9]} 45... Nc5 {[%clk 0:00:09.9]}
46. Be2 {[%clk 0:01:16.9]} 46... Nd7 {[%clk 0:00:08.1]} 1/2-1/2

[Event "Late-Titled-Tuesday-Blitz-December-26-2023"]
[Site "Chess.com"]
[Date "2023.12.26"]
[Round "8"]
[White "nindjaxx8"]
[Black "Marcin"]
[Result "0-1"]
[WhiteElo "2573"]
[BlackElo "2484"]
[TimeControl "180+1"]
[EndTime "15:26:34 PST"]
[Termination "Marcin won by checkmate"]

1. d4 {[%clk 0:03:00.9]} 1... Nf6 {[%clk 0:02:59.2]} 2. c4 {[%clk 0:02:56.8]}
2... g6 {[%clk 0:02:59.2]} 3. Nc3 {[%clk 0:02:57.4]} 3... Bg7 {[%clk 0:02:59.8]}
4. Nf3 {[%clk 0:02:55.9]} 4... O-O {[%clk 0:03:00.7]} 5. Bf4 {[%clk 0:02:56.1]}
5... c5 {[%clk 0:02:59.5]} 6. e3 {[%clk 0:02:56]} 6... cxd4 {[%clk 0:02:59.5]}
7. exd4 {[%clk 0:02:54.4]} 7... d5 {[%clk 0:02:59.9]} 8. Be2 {[%clk 0:02:51.2]}
8... dxc4 {[%clk 0:02:59.8]} 9. Bxc4 {[%clk 0:02:49.7]} 9... Nc6 {[%clk
0:02:55.1]} 10. O-O {[%clk 0:02:46.2]} 10... Bg4 {[%clk 0:02:54.8]} 11. d5
{[%clk 0:02:45.2]} 11... Bxf3 {[%clk 0:02:48.4]} 12. Qxf3 {[%clk 0:02:45.2]}
12... Nd4 {[%clk 0:02:48.9]} 13. Qd3 {[%clk 0:02:43.5]} 13... Nd7 {[%clk
0:02:49.5]} 14. Be3 {[%clk 0:02:33.7]} 14... Nf5 {[%clk 0:02:44.4]} 15. Bb3
{[%clk 0:02:26.2]} 15... Nxe3 {[%clk 0:02:42.9]} 16. Qxe3 {[%clk 0:02:24.8]}
16... a6 {[%clk 0:02:30.1]} 17. Rad1 {[%clk 0:02:22.9]} 17... Rc8 {[%clk
0:02:24.9]} 18. d6 {[%clk 0:02:20.7]} 18... exd6 {[%clk 0:02:23.4]} 19. Rxd6
{[%clk 0:02:21.6]} 19... Qc7 {[%clk 0:02:21.8]} 20. Rfd1 {[%clk 0:02:20.9]}
20... Nc5 {[%clk 0:02:22.1]} 21. Bc2 {[%clk 0:02:12.9]} 21... Rfe8 {[%clk
0:02:16.9]} 22. Qg3 {[%clk 0:02:06.1]} 22... Be5 {[%clk 0:02:15.2]} 23. Qh4
{[%clk 0:01:40]} 23... Bxd6 {[%clk 0:02:07.5]} 24. Nd5 {[%clk 0:01:40.3]} 24...
Be7 {[%clk 0:01:58.5]} 25. Nxc7 {[%clk 0:01:38.1]} 25... Bxh4 {[%clk 0:01:58.1]}
26. Nxe8 {[%clk 0:01:38.4]} 26... Rxe8 {[%clk 0:01:59]} 27. g3 {[%clk
0:01:37.5]} 27... Bf6 {[%clk 0:01:58.9]} 28. b4 {[%clk 0:01:37.8]} 28... Ne6
{[%clk 0:01:57.5]} 29. Rd7 {[%clk 0:01:38]} 29... Re7 {[%clk 0:01:56]} 30. Rd6
{[%clk 0:01:35.1]} 30... Be5 {[%clk 0:01:51.3]} 31. Rd5 {[%clk 0:01:34.2]} 31...
Nd4 {[%clk 0:01:50.9]} 32. Bd3 {[%clk 0:01:32.6]} 32... Nf3+ {[%clk 0:01:48.5]}
33. Kh1 {[%clk 0:01:30]} 33... Bc3 {[%clk 0:01:46.4]} 34. b5 {[%clk 0:01:26.4]}
34... axb5 {[%clk 0:01:46.2]} 35. Bxb5 {[%clk 0:01:27.3]} 35... Nd4 {[%clk
0:01:36.1]} 36. Bc4 {[%clk 0:01:24.6]} 36... h5 {[%clk 0:01:35.3]} 37. Kg2
{[%clk 0:01:23.6]} 37... Kg7 {[%clk 0:01:35.2]} 38. h4 {[%clk 0:01:20]} 38...
Rc7 {[%clk 0:01:24.9]} 39. Bd3 {[%clk 0:01:19.7]} 39... Ne6 {[%clk 0:01:20.8]}
40. Be4 {[%clk 0:01:17]} 40... Bd4 {[%clk 0:01:17]} 41. Rb5 {[%clk 0:01:11.1]}
41... b6 {[%clk 0:01:16.3]} 42. Rb4 {[%clk 0:01:04]} 42... Rc3 {[%clk
0:01:12.4]} 43. f4 {[%clk 0:00:48.6]} 43... Bc5 {[%clk 0:01:11.7]} 44. Rb2
{[%clk 0:00:47.1]} 44... Nd4 {[%clk 0:01:09.4]} 45. Rd2 {[%clk 0:00:46.2]} 45...
Nf5 {[%clk 0:01:08.6]} 46. Bf3 {[%clk 0:00:43.6]} 46... Ne3+ {[%clk 0:01:07.1]}
47. Kh3 {[%clk 0:00:37.6]} 47... Nf1 {[%clk 0:01:03.4]} 48. Rd3 {[%clk
0:00:36.7]} 48... Rxd3 {[%clk 0:01:03]} 49. g4 {[%clk 0:00:35.8]} 49... Rxf3+
{[%clk 0:01:00.5]} 50. Kg2 {[%clk 0:00:36.7]} 50... Rxf4 {[%clk 0:01:00.6]} 51.
gxh5 {[%clk 0:00:36.7]} 51... gxh5 {[%clk 0:01:01.3]} 52. a4 {[%clk 0:00:36]}
52... Rf2+ {[%clk 0:01:01.4]} 53. Kh3 {[%clk 0:00:34.9]} 53... Rh2# {[%clk
0:01:00.5]} 0-1